bitfinex-derivatives/quotes_ETHF0:USTF0_20251119
["timestamp","ask_amount","ask_price","bid_price","bid_amount"]
[1763576620942,0.00517562,2895.5,2895.2,1.2777]
[1763576621742,0.00902303,2895.5,2895.2,1.2777]
[1763576623838,0.56002,2895.2,2894.4,1.28287562]
[1763576625343,0.56002,2895.2,2893.6,1.46197369]
[1763576625344,0.56019,2894.3,2893.6,1.46197369]
[1763576625544,0.56024,2894.1,2893.6,0.00247369]
[1763576625746,0.56024,2894.0,2893.6,0.00247369]
[1763576626047,3.77082237,2894.3,2893.6,0.00247369]
[1763576626048,0.56018,2894.3,2893.6,0.00247369]
[1763576626352,0.5603,2893.7,2893.6,0.00247369]
[1763576626851,0.00517562,2893.9,2893.6,0.00247369]
[1763576627252,0.5603,2893.7,2893.6,0.00247369]
[1763576627752,0.00517562,2893.9,2893.6,0.00247369]
[1763576628656,0.00517562,2893.9,2893.6,1.28017369]
[1763576629153,0.00517562,2893.9,2893.6,0.00247369]
[1763576629154,0.56029,2893.8,2893.6,0.00247369]
[1763576629352,0.5603,2893.7,2893.6,0.00247369]
[1763576629744,0.00517562,2893.9,2893.6,1.28017369]
[1763576629953,3.77082237,2895.0,2893.6,7.28017369]
[1763576630257,3.77082237,2894.5,2893.6,1.28017369]
[1763576630952,4.33106237,2894.0,2893.6,1.28017369]
[1763576631157,0.00517562,2894.3,2893.6,1.28017369]
[1763576631357,0.56024,2894.0,2893.6,1.28017369]
[1763576631559,3.77082237,2894.2,2893.6,1.28017369]
[1763576632057,0.00517562,2894.3,2893.6,2.51354537]
[1763576632261,0.00517562,2894.3,2893.8,1.23337168]
[1763576632652,0.00517562,2894.3,2893.7,1.23337168]
[1763576632959,4.33103237,2894.2,2893.6,2.20669102]
[1763576633258,4.33103237,2894.2,2893.8,0.92651733]
[1763576633654,0.56023,2894.1,2893.8,0.92651733]
[1763576633856,0.56023,2894.1,2893.7,0.92651733]
[1763576634063,0.56023,2894.1,2893.8,0.92651733]
[1763576634265,0.56023,2894.1,2893.7,0.92651733]
[1763576634568,0.56026,2893.9,2893.6,0.00247369]
[1763576634859,4.33112237,2893.7,2893.6,0.00247369]
[1763576635448,0.5603,2893.7,2893.6,0.00247369]
[1763576636463,3.77082237,2894.1,2893.6,0.00247369]
[1763576636657,3.77082237,2894.1,2893.8,1.2777]
[1763576637762,3.77082237,2894.1,2893.7,0.92651733]
[1763576638354,3.77082237,2894.1,2893.8,1.2777]
[1763576640458,0.56027,2893.9,2893.6,0.92899102]
[1763576640654,0.56029,2893.8,2893.6,0.00247369]
[1763576641056,0.5603,2893.7,2893.6,0.00247369]
[1763576641257,1.6504,2894.2,2893.6,0.00247369]
[1763576641458,1.6504,2894.2,2893.8,1.2777]
[1763576641863,1.6504,2894.2,2893.8,2.20421733]
[1763576642861,1.6504,2894.2,2893.6,0.92899102]
[1763576643064,1.6504,2894.2,2893.6,0.00247369]
[1763576643259,1.6504,2894.2,2893.6,0.92899102]
[1763576643862,1.6504,2894.2,2893.6,0.00247369]
[1763576644165,0.56026,2893.9,2893.6,0.00247369]
[1763576644359,0.56024,2894.0,2893.6,0.00247369]
[1763576644769,1.6504,2894.2,2893.8,1.1534]
[1763576645062,1.6504,2894.2,2893.8,2.07991733]
[1763576645464,0.56025,2894.0,2893.8,2.07991733]
[1763576645662,0.56025,2894.0,2893.8,1.1534]
[1763576646271,0.56025,2894.0,2893.8,2.07991733]
[1763576646766,0.56025,2894.0,2893.8,1.1534]
[1763576647161,1.6504,2894.2,2893.6,0.00247369]
[1763576647465,1.6504,2894.2,2892.4,1.28664237]
[1763576647466,0.56044,2893.0,2892.4,1.28664237]
[1763576647877,2.61368673,2893.5,2892.4,1.28664237]
[1763576648170,0.56031,2893.7,2892.6,1.84311479]
[1763576648373,2.61368673,2893.4,2892.9,0.00518547]
[1763576648668,0.00307824,2893.7,2893.1,1.1534]
[1763576648863,0.00307824,2893.7,2893.1,2.99651479]
[1763576649063,0.00307824,2893.7,2893.2,1.84311479]
[1763576649668,0.56039,2893.2,2893.1,0.01989]
[1763576649875,2.61368673,2893.2,2889.6,1.1534]
[1763576650170,2.61368673,2891.3,2890.4,1.1534]
[1763576650568,0.56078,2891.2,2890.4,1.1534]
[1763576650760,0.56501107,2891.2,2891.0,0.6757753]
[1763576651170,0.5608,2891.1,2891.0,0.6757753]
[1763576651373,5.30463638,2891.1,2890.0,0.5]
[1763576651561,0.91866111,2890.5,2890.1,6.90875674]
[1763576651763,0.56108,2889.7,2888.0,2.1534]
[1763576652060,0.85654569,2890.4,2889.6,1.1534]
[1763576652061,4.60017055,2890.4,2889.6,1.1534]
[1763576652269,1.83440396,2892.2,2890.7,0.5]
[1763576652462,5.32533064,2891.5,2890.7,6.90452267]
[1763576652669,0.00518547,2891.2,2890.7,6.90452267]
[1763576653070,5.06301701,2893.1,2890.7,0.27757098]
[1763576653265,2.61368673,2891.9,2890.4,1.1534]
[1763576653466,2.61368673,2891.4,2890.4,1.1534]
[1763576653675,2.61368673,2890.9,2890.4,1.1534]
[1763576653975,2.61368673,2890.9,2890.6,0.5]
[1763576654172,2.6188722,2890.9,2890.4,0.00518547]
[1763576654674,0.00518547,2890.9,2890.4,1.15858547]
[1763576654881,2.61368673,2890.5,2888.0,1.0]
[1763576655061,0.00518547,2890.9,2888.1,1.1534]
[1763576655062,0.907,2890.4,2888.1,1.1534]
[1763576655263,4.41695921,2890.4,2888.1,1.5594]
[1763576655476,0.00518547,2890.9,2889.0,1.1534]
[1763576655772,0.00518547,2890.9,2890.8,0.5]
[1763576655975,2.61368673,2891.8,2890.8,1.65715566]
[1763576656270,2.61368673,2891.3,2890.8,0.00375566]
[1763576656465,2.61368673,2891.3,2887.2,16.33272719]
[1763576656466,0.56097,2890.3,2888.0,1.0]
[1763576656662,4.47304435,2891.2,2889.0,1.1534]
[1763576656869,4.47304435,2891.2,2889.9,1.1534]
[1763576656870,0.00518547,2890.4,2889.9,1.1534]
[1763576657274,0.5612,2889.1,2888.0,1.0]
[1763576657573,0.5612,2889.1,2888.1,0.00338671]
[1763576657574,0.00358701,2889.1,2888.1,0.00338671]
[1763576657768,0.00358701,2889.1,2888.1,1.15678671]
[1763576658269,2.61727374,2889.1,2888.1,0.00338671]
[1763576658469,2.61368673,2888.6,2888.1,0.00338671]
[1763576658669,3.17498673,2888.6,2888.1,0.00338671]
[1763576658869,0.5613,2888.6,2888.1,0.00338671]
[1763576659374,4.35162501,2888.6,2888.1,0.00338671]
[1763576659577,0.00518547,2888.9,2888.2,0.5]
[1763576659871,0.00518547,2888.9,2888.4,0.5]
[1763576660073,0.00518547,2888.9,2888.1,0.00338671]
[1763576660274,0.00518547,2888.9,2886.0,2.1534]
[1763576660580,0.00518547,2888.9,2884.4,2.44611957]
[1763576660581,0.56173,2886.4,2884.4,2.44611957]
[1763576660774,3.79032501,2886.2,2885.0,0.92569071]
[1763576661073,4.40717147,2886.3,2885.0,2.07909071]
[1763576661261,8.22153334,2886.1,2885.0,2.08354622]
[1763576661463,3.79032501,2886.2,2885.0,0.93014622]
[1763576661667,0.00378947,2886.3,2885.0,0.93014622]
[1763576661869,3.79551955,2887.1,2885.0,0.93014622]
[1763576662264,0.56678454,2887.1,2885.0,0.93014622]
[1763576662464,0.00519454,2887.1,2885.3,1.1534]
[1763576662872,0.00950522,2887.1,2885.3,1.1534]
[1763576663065,0.56145,2887.8,2885.3,4.94372501]
[1763576663270,3.79032501,2888.3,2886.4,1.1534]
[1763576663876,3.79032501,2888.0,2886.4,1.1534]
[1763576664080,3.79275391,2888.0,2887.5,0.5]
[1763576664267,4.35935845,2888.0,2887.5,0.00365291]
[1763576664582,3.79794845,2888.0,2886.9,0.00519454]
[1763576664880,0.00762344,2888.0,2886.9,0.00519454]
[1763576665574,3.79032501,2887.9,2887.2,0.5]
[1763576665776,0.56904344,2888.0,2886.9,0.00783702]
[1763576665972,0.56904344,2888.0,2887.2,0.5]
[1763576666177,0.00762344,2888.0,2886.9,0.00783702]
[1763576666378,0.00762344,2888.0,2887.7,0.5]
[1763576666573,0.00762344,2888.0,2886.9,0.00783702]
[1763576666768,0.00762344,2888.0,2887.9,0.5]
[1763576666974,0.00762344,2888.0,2887.0,1.4427]
[1763576667178,0.56152,2887.5,2886.9,0.00783702]
[1763576667581,0.56152,2887.5,2884.9,1.213]
[1763576667582,0.5616,2887.0,2884.6,3.79032501]
[1763576667980,0.5616,2887.0,2886.3,0.5]
[1763576668183,0.56162,2886.9,2885.1,1.915]
[1763576668483,0.56162,2886.9,2884.6,12.471]
[1763576668484,3.79032501,2887.2,2884.9,3.723]
[1763576668673,0.00519454,2886.5,2885.3,1.15589184]
[1763576668868,0.00519454,2886.5,2885.4,3.724]
[1763576669074,0.00519454,2886.5,2886.4,0.5]
[1763576669775,0.56152,2887.4,2886.4,6.5]
[1763576669976,3.79032501,2887.2,2885.3,1.15589184]
[1763576670283,3.79032501,2887.2,2885.8,0.5]
[1763576670284,0.56172,2886.4,2885.8,0.5]
[1763576670581,3.79032501,2887.2,2885.3,1.15589184]
[1763576670778,0.56689454,2886.5,2886.0,0.00519454]
[1763576671085,0.00519454,2886.5,2886.0,1.44789454]
[1763576671380,0.00519454,2886.5,2886.0,0.00519454]
[1763576671570,0.00519454,2886.5,2886.1,0.5]
[1763576671773,0.00519454,2886.5,2886.0,0.00519454]
[1763576671972,0.00519454,2886.5,2886.4,0.5]
[1763576672174,0.56151,2887.5,2886.4,0.5]
[1763576672486,0.56151,2887.5,2886.0,1.37479454]
[1763576672672,0.0024289,2888.0,2887.4,0.5]
[1763576672877,0.0024289,2888.0,2887.4,0.00319119]
[1763576673177,0.00762344,2888.0,2887.8,0.5]
[1763576673381,0.00762344,2888.0,2886.0,1.3696]
[1763576673578,5.03755806,2887.9,2886.0,1.3696]
[1763576673780,0.00762344,2888.0,2886.0,1.3696]
[1763576674082,0.56157,2887.2,2886.9,0.5]
[1763576674286,0.56157,2887.2,2886.0,1.3696]
[1763576674287,0.56157,2887.2,2887.1,0.5]
[1763576674475,0.56157,2887.2,2887.1,0.00271932]
[1763576674682,0.56165,2886.8,2886.0,1.3696]
[1763576675388,0.56152,2887.4,2886.0,1.3696]
[1763576675688,0.56152,2887.4,2886.8,0.5]
[1763576675878,1.7008,2887.3,2886.0,1.37236675]
[1763576676078,1.7008,2887.3,2887.0,0.5]
[1763576676383,1.7008,2887.3,2886.0,1.37236675]
[1763576677186,1.7008,2887.3,2887.2,1.3696]
[1763576677681,0.00762344,2888.0,2887.2,1.3696]
[1763576679692,0.56152,2887.4,2885.6,3.714]
[1763576680191,3.79032501,2887.6,2885.3,4.94372501]
[1763576680394,0.56168,2886.6,2885.3,1.1534]
[1763576680684,0.56151,2887.5,2885.3,1.1534]
[1763576680891,0.56152,2887.4,2885.3,4.94372501]
[1763576681091,0.56152,2887.4,2885.6,0.56187]
[1763576681292,0.56152,2887.4,2885.8,3.711]
[1763576681593,0.56152,2887.4,2885.9,0.5618]
[1763576681786,0.3669,2887.9,2885.8,7.50132501]
[1763576681992,0.56152,2887.4,2885.5,0.56188]
[1763576682191,0.56158,2887.1,2885.3,4.94372501]
[1763576682487,0.56158,2887.1,2885.5,3.713]
[1763576682692,0.56158,2887.1,2885.6,3.712]
[1763576683090,0.56158,2887.1,2885.4,0.5619]
[1763576683297,0.56158,2887.1,2885.6,3.711]
[1763576683481,3.14595049,2887.2,2885.3,1.1534]
[1763576683790,0.56166,2886.7,2885.3,4.8634]
[1763576684084,0.56166,2886.7,2885.3,1.1534]
[1763576684292,0.56166,2886.7,2885.5,3.708]
[1763576684489,4.35683433,2887.2,2885.3,1.1534]
[1763576684692,0.85637344,2887.1,2885.3,1.1534]
[1763576684888,16.695,2886.1,2885.3,1.1534]
[1763576685093,3.77962703,2886.1,2885.3,1.71532]
[1763576685291,3.63900483,2886.1,2886.0,0.00276675]
[1763576685686,3.63900483,2886.1,2886.0,6.00276675]
[1763576686091,1.66199454,2886.3,2886.0,6.00276675]
[1763576686391,17.98,2886.1,2886.0,6.00276675]
[1763576686796,12.51348057,2886.1,2886.0,11.10809147]
[1763576686996,12.51348057,2886.1,2886.0,14.81309147]
[1763576687291,1.57778384,2887.9,2886.5,0.56169]
[1763576687494,1.24581812,2887.7,2886.5,0.56169]
[1763576687689,1.24581812,2887.7,2886.7,0.56165]
[1763576687690,0.00519454,2887.5,2886.7,0.56165]
[1763576687994,0.00519454,2887.5,2886.9,3.14595049]
[1763576688187,3.46999454,2887.5,2887.0,3.703]
[1763576688396,3.46999454,2887.5,2887.2,0.56155]
[1763576688695,3.46999454,2887.5,2887.3,4.44145894]
[1763576688892,0.3669,2887.9,2887.7,0.56145]
[1763576689093,0.0024289,2888.0,2887.8,3.702]
[1763576689397,0.3693289,2888.0,2887.8,3.702]
[1763576689694,17.98,2887.9,2887.8,6.0]
[1763576689893,17.98,2887.9,2887.8,9.702]
[1763576690090,0.0024289,2888.0,2887.8,9.702]
[1763576690289,17.98,2887.9,2887.8,12.84795049]
[1763576690495,17.98,2887.9,2887.8,11.29574539]
[1763576690496,14.5176,2887.9,2887.8,11.29574539]
[1763576690698,14.5176,2887.9,2887.8,17.29274539]
[1763576690896,14.5176,2887.9,2887.6,0.00519454]
[1763576690897,18.3469,2887.9,2887.6,0.00519454]
[1763576691092,1.24581812,2887.8,2887.6,0.00519454]
[1763576691298,18.3469,2887.9,2887.6,0.00519454]
[1763576691990,15.76341812,2887.9,2886.6,0.042]
[1763576692194,2.09530207,2887.8,2886.6,0.042]
[1763576692385,14.5176,2886.7,2886.6,0.042]
[1763576692591,23.63627511,2886.7,2886.6,0.042]
[1763576692795,15.76341812,2886.7,2886.6,0.042]
[1763576693688,14.5176,2886.7,2886.6,0.042]
[1763576694590,3.8293,2886.8,2886.6,0.042]
[1763576694893,0.56143,2887.9,2886.7,3.697]
[1763576695090,9.11867511,2887.6,2886.7,3.697]
[1763576695290,1.24581812,2887.8,2886.6,0.042]
[1763576695596,1.24581812,2887.5,2886.7,3.694]
[1763576695992,17.69,2886.8,2886.7,3.694]
[1763576696389,21.10328184,2886.8,2886.7,6.0]
[1763576696589,21.10328184,2886.8,2886.7,54.96992208]
[1763576697199,21.10328184,2886.8,2886.7,51.83758208]
[1763576697200,17.27398184,2886.8,2886.7,51.83758208]
[1763576697398,16.71069289,2886.8,2886.7,68.00958208]
[1763576697595,20.53999289,2886.8,2886.7,51.83758208]
[1763576697797,16.71069289,2886.8,2886.7,62.00658208]
[1763576698198,0.0024289,2888.0,2887.6,0.56148]
[1763576698391,0.0542,2888.3,2886.8,3.14595049]
[1763576698392,1.24581812,2888.3,2886.8,3.14595049]
[1763576698594,1.24581812,2888.3,2886.6,0.042]
[1763576698595,0.56146,2887.8,2886.6,0.042]
[1763576698790,17.69,2886.9,2886.6,0.042]
[1763576699289,22.76948049,2886.9,2886.6,0.042]
[1763576699501,16.8825,2886.7,2886.6,0.042]
[1763576699700,0.56167,2886.7,2885.2,3.14595049]
[1763576702399,0.00519454,2887.0,2885.7,21.43841993]
[1763576702599,1.4122,2888.1,2886.4,3.70765049]
[1763576702806,2.04295885,2888.0,2886.5,3.692]
[1763576703107,19.31612344,2887.5,2886.6,40.8]
[1763576703300,1.19585683,2888.0,2886.7,0.56165]
[1763576703603,1.19585683,2888.0,2887.1,0.00519454]
[1763576703604,0.00519454,2887.6,2887.1,0.00519454]
[1763576703796,1.19585683,2887.5,2887.1,0.00519454]
[1763576703993,17.69,2887.2,2887.1,0.00519454]
[1763576704203,17.69,2887.2,2887.1,3.69319454]
[1763576704402,17.69,2887.2,2887.1,4.59586641]
[1763576704403,18.88585683,2887.2,2887.1,4.59586641]
[1763576704604,18.88585683,2887.2,2887.1,0.00519454]
[1763576705108,44.51122344,2887.2,2886.3,3.69]
[1763576705305,1.19066229,2887.1,2886.3,3.69]
[1763576705605,0.56164,2886.8,2885.4,0.00256216]
[1763576705807,1.5051,2886.3,2885.4,0.00256216]
[1763576706005,1.5051,2886.3,2885.5,40.8]
[1763576706208,19.31612344,2885.8,2885.6,0.00519454]
[1763576706397,0.00315285,2885.8,2885.6,0.00519454]
[1763576706601,1.19066229,2885.7,2885.6,0.00519454]
[1763576706796,3.83245285,2885.8,2885.7,4.56184479]
[1763576707009,0.00315285,2885.8,2885.6,4.56703933]
[1763576707212,3.83245285,2885.8,2885.7,3.685]
[1763576707505,3.83245285,2885.8,2885.7,8.78534425]
[1763576707706,0.00315285,2885.8,2885.7,8.78534425]
[1763576707900,0.00519454,2886.1,2885.8,0.56182]
[1763576708304,0.00519454,2886.1,2885.9,5.14202495]
[1763576708497,0.00519454,2886.1,2886.0,3.683]
[1763576709012,0.00847083,2886.1,2886.0,8.26321495]
[1763576709610,0.00847083,2886.1,2886.0,10.70933452]
[1763576709915,0.00847083,2886.1,2886.0,11.27112452]
[1763576710114,0.00847083,2886.1,2886.0,8.82500495]
[1763576710807,0.00847083,2886.1,2885.6,0.00519454]
[1763576711209,0.00847083,2886.1,2885.0,3.403674]
[1763576711210,19.31612344,2885.5,2885.0,0.92569071]
[1763576711512,0.00847083,2886.1,2885.1,8.23170859]
[1763576711704,0.57025083,2886.1,2885.2,3.682]
[1763576711900,3.8293,2886.0,2885.0,0.92569071]
[1763576712108,19.31612344,2885.2,2885.0,0.929893]
[1763576712306,3.8293,2885.3,2885.0,0.929893]
[1763576712515,0.5618,2886.0,2885.0,0.929893]
[1763576712811,0.00847083,2886.1,2885.1,8.71472101]
[1763576713014,0.00847083,2886.1,2885.1,11.1927043]
[1763576713203,0.00847083,2886.1,2885.0,0.929893]
[1763576713204,1.5051,2885.4,2885.0,0.929893]
[1763576713711,16.51122129,2885.1,2885.0,0.929893]
[1763576714511,23.07320129,2885.1,2883.9,40.8]
[1763576714809,16.51122129,2884.2,2883.9,40.8]
[1763576715010,0.00519454,2884.3,2883.9,40.8]
[1763576715217,1.5051,2885.4,2883.9,40.8]
[1763576715512,5.3344,2885.4,2884.0,3.68]
[1763576715911,1.5051,2885.4,2884.0,8.2310315]
[1763576716108,0.00519454,2885.0,2884.4,0.00519454]
[1763576716313,16.17201576,2884.8,2884.4,0.00519454]
[1763576716507,1.5051,2884.5,2883.9,40.80405284]
[1763576716712,1.5051,2884.5,2883.9,0.00405284]
[1763576716713,16.17201576,2884.0,2883.9,0.00405284]
[1763576716919,0.0024531,2884.0,2883.9,0.00405284]
[1763576717108,16.17446886,2884.0,2883.9,0.00405284]
[1763576717810,20.00376886,2884.0,2883.9,0.00405284]
[1763576718110,16.17446886,2884.0,2883.9,0.00405284]
[1763576718311,20.00376886,2884.0,2883.9,0.00405284]
[1763576718506,20.00376886,2884.0,2883.0,0.06035092]
[1763576718706,1.5051,2883.6,2882.3,0.955]
[1763576718903,0.00519454,2883.2,2882.5,0.06036432]
[1763576719209,0.0024531,2884.0,2882.3,0.955]
[1763576719210,16.17201576,2883.1,2882.6,45.26270396]
[1763576719410,16.17201576,2883.9,2882.6,45.26270396]
[1763576719712,3.8317531,2884.0,2882.6,40.80327425]
[1763576720016,0.00519454,2883.6,2883.0,0.00519454]
[1763576720212,15.3632235,2883.8,2883.0,0.00519454]
[1763576720413,0.0024531,2884.0,2883.8,0.56222]
[1763576720614,14.53278227,2883.9,2883.8,0.56222]
[1763576720918,14.53278227,2883.9,2883.8,4.24522]
[1763576721121,1.5051,2885.4,2884.5,0.56208]
[1763576721323,1.5051,2885.4,2884.7,0.00519454]
[1763576721518,0.00519454,2885.2,2884.8,3.683]
[1763576721816,0.00519454,2885.2,2884.9,3.683]
[1763576722011,0.00519454,2885.2,2885.1,0.56197]
[1763576722210,0.00834257,2885.2,2885.1,0.56519488]
[1763576722518,0.00834257,2885.2,2885.1,14.81902457]
[1763576722720,1.5051,2886.3,2885.7,0.56184]
[1763576722906,3.14595049,2888.0,2885.1,12.05694337]
[1763576723113,3.8293,2887.3,2885.3,0.56192]
[1763576723312,3.8293,2887.3,2885.4,40.8]
[1763576723508,3.8293,2887.3,2885.4,45.92297984]
[1763576723707,0.00519454,2886.6,2885.5,3.681]
[1763576723913,0.00519454,2886.6,2885.4,45.36106984]
[1763576724113,0.00519454,2886.6,2885.4,40.8]
[1763576724313,0.00519454,2886.6,2885.5,3.68]
[1763576724822,0.1279,2886.5,2885.6,4.42756975]
[1763576725222,3.9572,2886.5,2885.6,4.42756975]
[1763576725420,0.00251781,2887.2,2886.0,3.14595049]
[1763576725732,1.5051,2889.9,2887.2,0.56156]
[1763576726018,3.14595049,2888.9,2887.3,3.677]
[1763576726227,3.70719049,2888.9,2887.4,3.677]
[1763576726521,1.50814234,2888.1,2887.4,3.68015995]
[1763576726723,0.00519454,2888.0,2887.5,0.00519454]
[1763576727124,0.00519454,2888.0,2887.5,2.74219454]
[1763576728227,0.00519454,2888.0,2887.6,4.97283747]
[1763576728429,0.00519454,2888.0,2887.7,0.56146]
[1763576728622,0.00519454,2888.0,2887.8,0.56144]
[1763576728923,0.00519454,2888.0,2887.8,4.96606875]
[1763576729126,0.00304234,2888.1,2887.9,3.671]
[1763576729426,0.0087,2888.2,2888.0,3.70735049]
[1763576729623,1.5051,2889.9,2888.0,3.14595049]
[1763576729829,1.5051,2889.9,2888.3,0.56134]
[1763576730020,0.00519454,2889.4,2888.1,4.01304201]
[1763576730216,0.57292234,2889.2,2887.1,3.14595049]
[1763576730421,0.0039571,2889.2,2887.6,2.18]
[1763576730616,0.0039571,2889.2,2887.8,4.54248973]
[1763576730823,0.0039571,2889.2,2887.8,0.56144]
[1763576731227,0.0039571,2889.2,2887.9,49.01348973]
[1763576731424,0.0039571,2889.2,2887.9,45.34248973]
[1763576731727,0.0039571,2889.2,2888.0,3.67]
[1763576731927,0.0039571,2889.2,2888.1,0.56137]
[1763576732126,0.0256,2889.1,2888.1,0.56137]
[1763576732322,0.0256,2889.1,2888.2,4.56554854]
[1763576732519,1.52,2889.0,2888.2,4.56554854]
[1763576732832,1.52,2889.0,2887.9,40.8]
[1763576733030,1.53174234,2889.0,2888.0,3.667]
[1763576733219,1.53174234,2889.0,2888.0,8.23254854]
[1763576733728,1.52,2889.0,2888.1,0.56138]
[1763576734121,1.52,2889.0,2888.2,4.50480288]
[1763576734317,1.52,2889.0,2888.3,3.663]
[1763576734521,1.52,2889.0,2887.5,0.00519454]
[1763576734522,1.52,2888.1,2887.5,0.00519454]
[1763576734724,0.01174234,2887.8,2885.9,3.14595049]
[1763576734926,1.52,2887.2,2886.0,43.465]
[1763576735328,0.01174234,2887.3,2886.4,3.14595049]
[1763576735629,1.52,2888.1,2886.9,3.14595049]
[1763576735818,0.00519454,2887.8,2887.2,0.56675454]
[1763576736024,0.00519454,2887.8,2887.3,3.663]
[1763576736227,0.01693688,2887.8,2887.3,3.663]
[1763576736426,0.00519454,2887.8,2887.3,3.663]
[1763576736728,0.01693688,2887.8,2887.3,3.663]
[1763576737230,0.00519454,2887.8,2887.4,4.56176723]
[1763576738232,0.01693688,2887.8,2887.5,3.66]
[1763576738429,0.01693688,2887.8,2887.2,0.00519454]
[1763576738630,0.01693688,2887.8,2887.3,3.657]
[1763576738938,0.01693688,2887.8,2887.3,8.0688755]
[1763576739143,0.00519454,2887.8,2887.4,3.657]
[1763576739343,0.01693688,2887.8,2887.4,3.657]
[1763576739539,0.00519454,2887.8,2887.4,3.657]
[1763576739739,0.00519454,2887.8,2887.5,4.56946083]
[1763576740337,0.00519454,2887.8,2887.5,3.655]
[1763576740535,0.01693688,2887.8,2887.5,8.17993944]
[1763576740736,0.01693688,2887.8,2887.5,4.52493944]
[1763576740939,0.01693688,2887.8,2887.6,3.654]
[1763576741240,0.00519454,2887.8,2887.4,4.52493944]
[1763576741540,0.01693688,2887.8,2887.4,2.317]
[1763576742144,0.00519454,2887.8,2887.4,2.317]
[1763576742336,0.01693688,2887.8,2887.2,0.00519454]
[1763576742532,0.01693688,2887.8,2887.3,1.823]
[1763576742742,0.01693688,2887.8,2887.3,6.23775081]
[1763576742946,0.00519454,2887.8,2887.3,6.23775081]
[1763576743536,0.00519454,2887.8,2887.4,0.56152]
[1763576743740,1.52,2889.0,2887.6,0.56147]
[1763576743935,1.53174234,2889.0,2887.8,0.56144]
[1763576744142,1.52,2889.0,2887.9,3.648]
[1763576744342,1.52,2889.0,2887.9,8.13463432]
[1763576744544,1.52,2889.0,2888.0,3.647]
[1763576744747,0.00519454,2888.8,2888.0,3.647]
[1763576745052,0.00519454,2888.8,2888.1,4.4041235]
[1763576745243,0.01693688,2888.8,2888.1,4.4041235]
[1763576746154,0.00519454,2888.8,2888.1,4.4041235]
[1763576746648,0.01693688,2888.8,2887.5,0.56149]
[1763576746848,0.01693688,2888.8,2888.2,3.645]
[1763576747050,0.00519454,2888.8,2888.2,3.645]
[1763576747252,0.00519454,2888.8,2888.3,4.42096051]
[1763576748054,9.454e-05,2888.8,2888.4,48.04752468]
[1763576748247,0.01183688,2888.8,2888.7,0.56127]
[1763576748448,0.0256,2889.1,2889.0,0.56121]
[1763576748755,1.52,2888.8,2888.7,8.24758073]
[1763576748949,1.52,2888.8,2887.1,3.78852468]
[1763576749151,1.53174234,2888.8,2887.2,3.053]
[1763576749453,0.00343277,2888.3,2887.7,0.00519454]
[1763576749652,0.00343277,2888.3,2887.7,0.56665454]
[1763576749852,0.01517511,2888.3,2887.8,8.21433876]
[1763576750048,0.00343277,2888.3,2887.8,8.21433876]
[1763576750250,0.00343277,2888.3,2887.8,3.641]
[1763576750251,0.01517511,2888.3,2887.8,3.641]
[1763576751050,0.00343277,2888.3,2887.8,3.641]
[1763576751353,0.00343277,2888.3,2887.7,0.00947245]
[1763576751354,0.00343277,2888.3,2887.9,4.60469255]
[1763576751553,0.01517511,2888.3,2887.9,8.24269255]
[1763576751755,0.01517511,2888.3,2887.9,3.638]
[1763576752056,0.00343277,2888.3,2887.9,3.638]
[1763576752359,0.01517511,2888.3,2887.9,3.638]
[1763576752764,0.01517511,2888.3,2887.7,0.00947245]
[1763576752952,0.00343277,2888.3,2887.7,3.64647245]
[1763576753661,0.01517511,2888.3,2887.7,3.64647245]
[1763576753861,0.01517511,2888.3,2887.8,4.42719487]
[1763576754158,0.00343277,2888.3,2887.8,4.42719487]
[1763576754561,1.52,2888.0,2887.7,0.00947245]
[1763576754958,0.01174234,2887.9,2887.7,0.00947245]
[1763576755154,0.00343277,2888.3,2887.8,3.636]
[1763576756056,0.00343277,2888.3,2887.9,4.60408069]
[1763576756659,0.01517511,2888.3,2887.7,0.00947245]
[1763576756863,0.01174234,2887.8,2887.7,0.00947245]
[1763576757157,1.52,2888.0,2887.7,0.00947245]
[1763576757761,1.53174234,2888.0,2887.7,0.00947245]
[1763576758164,1.52,2888.0,2887.7,0.00947245]
[1763576758460,0.01174234,2888.0,2887.7,0.00947245]
[1763576758649,0.01174234,2888.0,2887.8,4.6031148]
[1763576758853,0.01174234,2888.0,2887.8,3.629]
[1763576759051,0.00343277,2888.3,2887.8,3.63]
[1763576759257,0.01517511,2888.3,2887.8,3.63]
[1763576759457,0.01517511,2888.3,2887.7,0.00947245]
[1763576759852,0.01517511,2888.3,2886.7,2.33379982]
[1763576759853,0.56144,2887.8,2886.7,2.33379982]
[1763576760067,0.56144,2887.8,2886.4,3.63]
[1763576760255,3.78852468,2887.9,2886.0,0.28218137]
[1763576760256,0.01174234,2886.9,2886.0,3.36482456]
[1763576760453,1.52,2887.2,2885.4,3.08264319]
[1763576760654,0.01174234,2886.2,2885.5,3.629]
[1763576760859,1.52,2885.6,2885.5,0.00302264]
[1763576761265,0.00519454,2886.1,2885.5,4.6027435]
[1763576761462,1.52,2887.2,2885.6,41.36187]
[1763576761658,1.52,2887.2,2885.7,3.629]
[1763576761964,1.52,2887.2,2885.7,8.1478609]
[1763576762153,0.56159,2887.1,2885.8,3.629]
[1763576762354,0.56509277,2886.7,2885.5,0.00302264]
[1763576763167,0.00343277,2886.7,2885.5,0.00302264]
[1763576763463,1.4538,2886.3,2885.5,0.00302264]
[1763576764366,1.4538,2886.3,2885.6,3.628]
[1763576764957,1.4538,2885.6,2884.0,14.80714771]
[1763576765159,1.4538,2885.6,2883.9,4.29905776]
[1763576765361,1.4538,2885.6,2884.7,4.42620554]
[1763576765566,1.4538,2885.6,2884.8,3.639]
[1763576765968,1.4538,2885.6,2884.8,3.64324341]
[1763576766171,0.00519454,2885.5,2884.9,4.5744634]
[1763576766668,1.4538,2886.3,2885.1,0.56196]
[1763576767068,1.4538,2886.3,2885.2,4.46562843]
[1763576767370,1.4538,2886.3,2885.3,2.264]
[1763576767571,0.00343277,2886.1,2885.3,2.264]
[1763576767867,0.00343277,2886.1,2885.4,4.59695671]
[1763576769161,0.00343277,2886.1,2885.5,3.633]
[1763576769361,0.00343277,2886.1,2885.3,4.48961243]